bitfinex/quotes_ETHUSD_20250815
["timestamp","ask_amount","ask_price","bid_price","bid_amount"]
[1755228733692,0.4542,4647.6,4647.5,3.32]
[1755228733887,0.9004,4647.6,4647.0,0.1072]
[1755228734088,0.1072,4647.7,4647.5,3.32]
[1755228734817,0.4542,4648.0,4647.5,3.32]
[1755228734981,0.1072,4648.1,4647.5,3.32]
[1755228736286,0.1072,4648.1,4647.4,0.1072]
[1755228736492,0.1072,4648.1,4647.5,3.32]
[1755228736674,0.002,4649.7,4648.0,0.1072]
[1755228736675,0.1072,4648.6,4648.0,0.1072]
[1755228736903,0.1072,4648.6,4648.1,3.34151416]
[1755228737107,0.002,4648.8,4648.4,0.1072]
[1755228738493,0.002,4648.8,4648.5,0.4473]
[1755228738805,0.002,4648.8,4648.7,2.25833902]
[1755228739122,0.002,4648.8,4648.7,5.57833902]
[1755228739323,0.002,4648.8,4648.7,6.02563902]
[1755228741425,0.002,4648.8,4648.7,5.91843902]
[1755228741730,0.002,4648.8,4648.7,6.02563902]
[1755228742935,0.002,4648.8,4648.7,3.4262]
[1755228743901,0.002,4648.8,4648.7,5.57733902]
[1755228744095,0.002,4648.8,4648.7,6.02753902]
[1755228744910,0.002,4648.8,4648.7,16.02753902]
[1755228745231,0.002,4648.8,4648.7,19.02753902]
[1755228745399,0.002,4648.8,4648.7,19.11370902]
[1755228745803,0.57693783,4652.7,4648.7,13.85537]
[1755228746144,0.9541,4652.6,4651.5,2.1498068]
[1755228746336,10.78227005,4652.5,4651.4,3.4552]
[1755228746498,0.1072,4651.9,4651.5,3.348]
[1755228746694,2.14939916,4652.5,4651.5,3.348]
[1755228746899,2.2567751,4652.1,4651.5,3.4552]
[1755228747297,0.01641705,4652.0,4651.5,3.348]
[1755228747497,2.1496252,4652.0,4651.5,3.348]
[1755228747737,2.2567756,4652.1,4651.5,3.348]
[1755228747942,0.1072,4652.1,4651.5,3.348]
[1755228748302,2.09961495,4652.0,4651.5,3.348]
[1755228748503,0.1072,4652.1,4651.5,3.348]
[1755228748711,3.21089855,4652.1,4651.5,3.348]
[1755228749030,1.0613,4652.1,4651.5,3.348]
[1755228749833,3.21087167,4652.1,4651.5,3.348]
[1755228750241,2.14961809,4652.0,4651.5,3.348]
[1755228750451,2.1496687,4651.9,4651.5,3.348]
[1755228750654,2.15007525,4651.0,4650.9,3.35]
[1755228750867,2.15007525,4651.0,4649.6,0.4502]
[1755228750868,0.4888,4651.0,4650.8,0.1072]
[1755228751072,0.4653,4651.5,4650.8,0.1072]
[1755228751224,2.63869035,4651.4,4650.7,3.35]
[1755228751424,0.1072,4651.2,4650.7,3.35]
[1755228751635,0.9541,4651.1,4650.7,3.35]
[1755228751824,0.4888,4651.0,4650.7,3.35]
[1755228752645,0.1072,4651.2,4650.6,0.1072]
[1755228752846,0.4888,4650.9,4650.2,3.347]
[1755228753161,0.4888,4650.9,4649.8,10.0]
[1755228753162,2.1502676,4650.6,4650.3,3.4542]
[1755228753364,0.9541,4650.5,4650.3,0.1072]
[1755228753727,0.9541,4650.4,4650.1,3.347]
[1755228753926,0.9541,4650.3,4649.7,3.347]
[1755228754169,0.9541,4650.3,4648.6,2.60135906]
[1755228754170,0.4888,4650.2,4649.5,3.347]
[1755228754365,2.15052257,4650.1,4649.5,3.347]
[1755228754527,2.15059966,4649.9,4649.5,3.4542]
[1755228754726,3.10474488,4649.8,4649.5,3.347]
[1755228755052,0.4888,4649.7,4649.5,3.347]
[1755228755226,2.14962198,4652.0,4649.5,3.347]
[1755228755227,0.1072,4650.5,4649.6,2.70810135]
[1755228755426,2.63895521,4650.9,4649.8,2.15062439]
[1755228755669,2.25738281,4650.8,4650.1,0.1072]
[1755228755872,0.1072,4650.8,4650.1,0.1072]
[1755228756070,0.1072,4650.8,4650.2,0.02150445]
[1755228756232,0.1072,4651.2,4650.5,0.1072]
[1755228756574,2.14980106,4651.6,4650.6,0.0215026]
[1755228756746,0.1072,4651.4,4650.7,3.347]
[1755228756924,0.4888,4652.0,4650.8,0.1072]
[1755228757127,0.1072,4651.7,4650.8,2.25735941]
[1755228757353,0.1072,4651.7,4650.7,3.347]
[1755228757354,0.4888,4652.0,4650.9,0.4502]
[1755228757541,0.1072,4652.0,4651.3,0.1072]
[1755228757746,0.1072,4652.0,4651.3,3.4542]
[1755228758356,0.01641705,4651.9,4651.3,3.4542]
[1755228758571,2.14972092,4651.8,4651.3,3.4542]
[1755228758868,3.21105401,4651.7,4651.3,3.347]
[1755228759166,0.4888,4651.6,4651.3,3.347]
[1755228759370,0.4888,4651.5,4651.3,3.347]
[1755228759657,0.1072,4651.7,4651.3,3.347]
[1755228759851,2.14985885,4651.5,4651.3,3.347]
[1755228760357,0.9541,4651.6,4651.3,3.347]
[1755228760560,2.14989035,4651.4,4651.3,3.347]
[1755228760781,2.63869035,4651.4,4651.3,3.347]
[1755228760964,3.10399035,4651.4,4651.3,3.347]
[1755228761947,0.1072,4651.7,4651.3,3.347]
[1755228762349,2.25695603,4651.7,4651.3,3.347]
[1755228762561,0.4908,4652.1,4651.4,0.4716989]
[1755228762562,0.002,4652.1,4651.4,0.4716989]
[1755228762766,0.002,4652.1,4651.6,0.1072]
[1755228762931,2.15157298,4652.1,4651.6,0.1072]
[1755228763537,0.002,4652.1,4651.7,0.02149751]
[1755228763956,0.002,4652.1,4651.8,0.4502]
[1755228764164,0.002,4652.1,4651.9,0.1072]
[1755228765277,0.002,4652.1,4651.3,3.347]
[1755228765437,3.10371315,4652.0,4651.3,3.347]
[1755228765632,0.9541,4652.0,4651.4,0.1072]
[1755228766441,0.4888,4652.0,4651.4,0.1072]
[1755228767440,0.002,4652.1,4651.4,0.1072]
[1755228767642,0.002,4652.1,4651.5,0.4502]
[1755228767840,0.002,4652.1,4651.8,0.1072]
[1755228768842,0.4908,4652.1,4651.3,3.347]
[1755228769043,0.4908,4652.1,4651.6,0.1072]
[1755228769243,0.9541,4652.0,4651.5,0.001]
[1755228769645,0.9541,4651.9,4651.5,0.001]
[1755228769869,2.14979791,4651.6,4651.5,0.001]
[1755228770082,2.25699791,4651.6,4651.5,0.001]
[1755228770281,0.1072,4651.6,4651.5,0.001]
[1755228770446,2.14979791,4651.6,4651.5,0.001]
[1755228770650,0.1072,4651.7,4651.5,0.001]
[1755228770865,2.63859791,4651.6,4651.5,0.001]
[1755228771066,0.1072,4651.7,4651.5,0.001]
[1755228771378,2.25686086,4651.9,4651.5,0.001]
[1755228771548,2.1497119,4651.8,4651.5,0.001]
[1755228771747,2.14977059,4651.7,4651.5,0.001]
[1755228772168,0.4612,4651.7,4651.5,0.001]
[1755228772843,12.85205091,4651.6,4651.5,0.001]
[1755228773048,3.60994681,4651.6,4651.5,0.001]
[1755228773248,3.14749791,4651.6,4651.5,0.001]
[1755228773779,2.71819791,4651.6,4651.5,0.001]
[1755228774181,3.14749791,4651.6,4651.5,0.001]
[1755228774591,3.16391496,4651.6,4651.5,0.001]
[1755228774752,3.62636386,4651.6,4651.5,0.001]
[1755228775185,14.01342522,4651.6,4651.5,0.001]
[1755228775461,13.99700817,4651.6,4651.5,0.001]
[1755228775649,13.42169981,4651.6,4651.5,0.001]
[1755228780187,12.53119981,4651.6,4651.5,0.001]
[1755228780355,16.44772263,4651.6,4651.5,0.001]
[1755228780561,17.33822263,4651.6,4651.5,0.001]
[1755228780762,16.7600733,4651.6,4651.5,0.001]
[1755228780960,2.15002902,4651.1,4651.0,0.001]
[1755228781160,15.88622146,4651.1,4651.0,1e-08]
[1755228781366,16.76030441,4651.1,4651.0,1e-08]
[1755228781662,17.5315046,4651.1,4651.0,1e-08]
[1755228783302,16.76030441,4651.1,4651.0,1e-08]
[1755228783793,16.96109377,4651.1,4651.0,1e-08]
[1755228784289,17.73161401,4651.1,4651.0,1e-08]
[1755228784481,14.39361401,4651.1,4651.0,1e-08]
[1755228784793,16.75930441,4651.1,4651.0,1e-08]
[1755228785591,13.42230441,4651.1,4651.0,1e-08]
[1755228785801,17.33703945,4651.1,4651.0,1e-08]
[1755228786091,16.75830441,4651.1,4651.0,1e-08]
[1755228787143,12.53180441,4651.1,4651.0,1e-08]
[1755228787306,15.40498202,4651.1,4651.0,1e-08]
[1755228787508,16.29548202,4651.1,4651.0,1e-08]
[1755228787705,16.75750213,4651.1,4651.0,1e-08]
[1755228788025,15.40598202,4651.1,4651.0,1e-08]
[1755228788222,12.95948202,4651.1,4651.0,1e-08]
[1755228788428,16.29648202,4651.1,4651.0,1e-08]
[1755228789001,15.86718202,4651.1,4651.0,1e-08]
[1755228789217,15.40598202,4651.1,4651.0,1e-08]
[1755228789826,15.86718202,4651.1,4651.0,1e-08]
[1755228791006,16.29648202,4651.1,4651.0,1e-08]
[1755228791621,15.86718202,4651.1,4651.0,1e-08]
[1755228792229,15.40298202,4651.1,4651.0,1e-08]
[1755228792825,16.29348202,4651.1,4651.0,1e-08]
[1755228793417,15.40298202,4651.1,4651.0,1e-08]
[1755228794119,15.86418202,4651.1,4651.0,1e-08]
[1755228794326,16.29348202,4651.1,4651.0,1e-08]
[1755228794928,15.86418202,4651.1,4651.0,1e-08]
[1755228795629,16.29348202,4651.1,4651.0,1e-08]
[1755228797033,15.86418202,4651.1,4651.0,1e-08]
[1755228797240,12.53018202,4651.1,4651.0,1e-08]
[1755228797404,15.39898202,4651.1,4651.0,1e-08]
[1755228798406,15.86172002,4651.1,4651.0,1e-08]
[1755228799204,12.53172002,4651.1,4651.0,1e-08]
[1755228799533,15.86172002,4651.1,4651.0,1e-08]
[1755228800542,12.53172002,4651.1,4651.0,1e-08]
[1755228800709,15.85972002,4651.1,4651.0,1e-08]
[1755228802034,12.53172002,4651.1,4651.0,1e-08]
[1755228802232,15.85972002,4651.1,4651.0,1e-08]
[1755228802645,12.53172002,4651.1,4651.0,1e-08]
[1755228802848,12.42452002,4651.1,4651.0,0.46270001]
[1755228803047,12.06898202,4651.1,4651.0,0.46270001]
[1755228804942,5.58322902,4651.1,4651.0,0.46270001]
[1755228805800,5.58322902,4651.1,4651.0,1e-08]
[1755228806036,6.9780688,4651.1,4651.0,1e-08]
[1755228806212,16.7898218,4651.1,4651.0,1e-08]
[1755228806807,16.3218218,4651.1,4651.0,1e-08]
[1755228807127,16.7898218,4651.1,4651.0,1e-08]
[1755228809717,17.36755684,4651.1,4651.0,1e-08]
[1755228809928,16.7898218,4651.1,4651.0,1e-08]
[1755228810623,28.03395621,4651.1,4651.0,1e-08]
[1755228811143,15.8547218,4651.1,4651.0,1e-08]
[1755228811842,12.53295759,4651.1,4651.0,1e-08]
[1755228812049,15.85495759,4651.1,4651.0,1e-08]
[1755228812217,6.04320459,4651.1,4651.0,0.46270001]
[1755228812413,0.002,4651.6,4651.0,0.92300001]
[1755228812613,0.1072,4651.1,4651.0,0.92300001]
[1755228813357,2.14993352,4651.4,4651.0,0.92300001]
[1755228813544,9.918953,4651.3,4651.0,0.92300001]
[1755228813733,9.811753,4651.2,4651.1,0.923]
[1755228813932,9.811753,4651.2,4651.1,0.4603]
[1755228814252,9.811753,4651.2,4651.1,0.923]
[1755228814961,11.9617358,4651.2,4651.1,0.4627]
[1755228815142,2.15002902,4651.1,4651.0,1e-08]
[1755228815544,15.30019907,4651.1,4651.0,1e-08]
[1755228815831,15.74688202,4651.1,4651.0,1e-08]
[1755228816219,16.67865899,4651.1,4651.0,1e-08]
[1755228817248,17.25862845,4651.1,4651.0,1e-08]
[1755228821246,15.85475899,4651.1,4651.0,1e-08]
[1755228821447,15.85475899,4651.1,4651.0,0.46270001]
[1755228821648,12.53275899,4651.1,4651.0,0.46270001]
[1755228821847,6.04300599,4651.1,4651.0,0.46270001]
[1755228822162,6.04300599,4651.1,4651.0,1e-08]
[1755228822358,15.85475899,4651.1,4651.0,1e-08]
[1755228826694,16.78585899,4651.1,4651.0,1e-08]
[1755228828190,16.31785899,4651.1,4651.0,1e-08]
[1755228828797,15.85475899,4651.1,4651.0,1e-08]
[1755228829509,12.53275899,4651.1,4651.0,1e-08]
[1755228829805,15.85475899,4651.1,4651.0,0.46270001]
[1755228829965,12.06898202,4651.1,4651.0,0.46270001]
[1755228830165,15.85466679,4651.1,4651.0,0.46270001]
[1755228830413,15.39098202,4651.1,4651.0,0.46270001]
[1755228830767,15.85467063,4651.1,4651.0,0.46270001]
[1755228831786,12.53267063,4651.1,4651.0,1e-08]
[1755228832103,15.85467063,4651.1,4651.0,1e-08]
[1755228833003,12.53267063,4651.1,4651.0,1e-08]
[1755228833201,15.85467063,4651.1,4651.0,0.44820001]
[1755228833372,15.85467063,4651.1,4651.0,1e-08]
[1755228833975,15.85467063,4651.1,4651.0,0.44820001]
[1755228834809,12.53267063,4651.1,4651.0,1e-08]
[1755228835025,2.25722902,4651.1,4651.0,1e-08]
[1755228835310,2.27364607,4651.1,4651.0,1e-08]
[1755228835512,12.53929907,4651.1,4651.0,1e-08]
[1755228835812,13.44608161,4651.1,4651.0,1e-08]
[1755228839111,13.44808161,4651.1,4651.0,1e-08]
[1755228839312,14.02767821,4651.1,4651.0,1e-08]
[1755228841533,15.85668161,4651.1,4651.0,1e-08]
[1755228841686,15.85668161,4651.1,4651.0,0.44820001]
[1755228841883,12.53468161,4651.1,4651.0,0.44820001]
[1755228842132,12.53468161,4651.1,4651.0,0.92950001]
[1755228842133,12.07098202,4651.1,4651.0,0.92950001]
[1755228842349,0.1092,4651.1,4651.0,0.92950001]
[1755228842687,0.002,4651.1,4651.0,0.92950001]
[1755228843820,2.15202902,4651.1,4651.0,0.92950001]
[1755228844722,0.002,4651.1,4651.0,0.92950001]
[1755228846599,0.002,4651.1,4651.0,0.44820001]
[1755228846806,0.002,4651.1,4651.0,0.92950001]
[1755228849795,0.002,4651.1,4651.0,0.44820001]
[1755228851125,0.002,4651.1,4651.0,1e-08]
[1755228851292,0.002,4651.1,4651.0,0.44820001]
[1755228851707,0.002,4651.1,4651.0,0.92950001]
[1755228852703,0.002,4651.1,4651.0,1e-08]
[1755228852908,0.002,4651.1,4651.0,0.44820001]
[1755228854556,2.15202902,4651.1,4651.0,1e-08]
[1755228854692,2.25922902,4651.1,4651.0,1e-08]
[1755228855221,2.71312902,4651.1,4651.0,1e-08]
[1755228855797,2.25922902,4651.1,4651.0,1e-08]
[1755228856129,2.27564607,4651.1,4651.0,1e-08]
[1755228856333,3.17262902,4651.1,4651.0,1e-08]
[1755228856520,12.98438202,4651.1,4651.0,1e-08]
[1755228859833,16.30438202,4651.1,4651.0,1e-08]
[1755228861501,9.920953,4651.1,4651.0,1e-08]
[1755228861801,2.15202902,4651.1,4651.0,0.43630001]
[1755228862252,2.15202902,4651.1,4651.0,1e-08]
[1755228863512,0.002,4651.1,4651.0,0.43630001]
[1755228863720,2.15202902,4651.1,4651.0,0.43630001]
[1755228864114,2.15202902,4651.1,4651.0,1e-08]
[1755228865026,0.002,4651.1,4651.0,0.90540001]
[1755228866434,0.002,4651.1,4651.0,0.43630001]
[1755228866742,0.002,4651.1,4651.0,1e-08]
[1755228866946,2.15202902,4651.1,4651.0,1e-08]
[1755228867339,0.002,4651.1,4651.0,0.43630001]
[1755228869611,2.16844607,4651.1,4651.0,1e-08]
[1755228869815,2.62124607,4651.1,4651.0,1e-08]
[1755228870064,3.08064607,4651.1,4651.0,1e-08]
[1755228870353,2.60482902,4651.1,4651.0,1e-08]
[1755228870514,0.002,4651.1,4651.0,1e-08]
[1755228870860,0.002,4651.1,4651.0,0.43630001]
[1755228871081,2.15202902,4651.1,4651.0,0.43630001]
[1755228871771,2.25922902,4651.1,4651.0,1e-08]
[1755228872282,3.18784607,4651.1,4651.0,1e-08]
[1755228873486,3.17142902,4651.1,4651.0,1e-08]
[1755228874188,2.72844607,4651.1,4651.0,1e-08]
[1755228874356,3.18784607,4651.1,4651.0,1e-08]
[1755228875160,3.17142902,4651.1,4651.0,1e-08]
[1755228875386,2.71202902,4651.1,4651.0,1e-08]
[1755228876374,0.1092,4651.1,4651.0,1e-08]
[1755228876870,0.1092,4651.1,4651.0,0.43630001]
[1755228877561,0.002,4651.1,4651.0,0.43630001]
[1755228877765,0.002,4651.1,4651.0,0.92690076]
[1755228878589,0.002,4651.1,4651.0,0.90540001]
[1755228879100,0.002,4651.1,4651.0,0.92690076]
[1755228879304,0.002,4651.1,4651.0,0.90540001]
[1755228879618,0.002,4651.1,4651.0,1e-08]
[1755228880001,0.002,4651.1,4651.0,0.92690076]
[1755228880210,0.002,4651.1,4651.0,14.39912116]
[1755228880496,0.002,4651.1,4651.0,6.48167526]
[1755228881124,0.002,4651.1,4651.0,20.71812116]
[1755228881523,0.002,4651.1,4651.0,3.05547526]
[1755228881740,0.002,4651.1,4651.0,6.37447526]
[1755228882718,0.002,4651.1,4651.0,3.05547526]
[1755228882929,0.002,4651.1,4651.0,6.37447526]
[1755228884702,0.002,4651.1,4651.0,16.37447526]
[1755228889162,0.002,4651.1,4651.0,13.05547526]
[1755228889342,0.002,4651.1,4651.0,19.37347526]
[1755228890233,0.002,4651.1,4651.0,16.05547526]
[1755228890433,0.002,4651.1,4651.0,18.90437526]
[1755228890648,0.002,4651.1,4651.0,19.37347526]
[1755228891539,0.002,4651.1,4651.0,19.48067526]
[1755228893062,1e-08,4651.6,4651.5,13.38629003]
[1755228893265,1e-08,4651.6,4651.5,16.70429003]
[1755228893630,1e-08,4651.6,4651.5,17.62209003]
[1755228894875,1e-08,4651.6,4651.5,12.14984413]
[1755228895175,1e-08,4651.6,4651.5,15.14984413]
[1755228895481,1e-08,4651.6,4651.5,12.14984413]
[1755228895863,1e-08,4651.6,4651.5,5.46784413]
[1755228897569,1e-08,4651.6,4651.5,2.14984413]
[1755228897865,0.96550001,4651.6,4651.5,3.318]
[1755228898242,0.96550001,4651.6,4651.5,5.46784413]
[1755228898442,0.49160001,4651.6,4651.5,5.46784413]
[1755228898876,0.49160001,4651.6,4651.5,3.318]
[1755228899372,1e-08,4651.6,4651.5,5.46784413]
[1755228899968,1e-08,4651.6,4651.5,9.7158441]
[1755228900172,0.49160001,4651.6,4651.5,7.56599997]
[1755228900474,0.49160001,4651.6,4651.5,9.7158441]
[1755228901686,0.49160001,4651.6,4651.0,1e-08]
[1755228901687,2.14988704,4651.5,4651.0,1e-08]
[1755228901987,9.811753,4651.4,4651.0,1e-08]
[1755228902189,0.9655,4651.4,4651.1,3.317]
[1755228902370,0.4916,4651.4,4651.1,3.317]
[1755228902686,1e-08,4651.6,4651.2,0.02149982]
[1755228902888,0.4916,4651.5,4651.3,3.317]
[1755228903091,0.9655,4651.4,4651.3,3.317]
[1755228903389,1e-08,4651.6,4651.3,3.317]
[1755228903568,1e-08,4651.6,4651.3,3.4242]
[1755228904692,0.9655,4651.5,4651.4,3.317]
[1755228906890,3.1153495,4651.5,4651.0,0.10720001]
[1755228907092,2.1498495,4651.5,4651.1,3.317]
[1755228907281,3.11540526,4651.4,4651.1,3.317]
[1755228907461,3.11544075,4651.3,4651.1,3.317]
[1755228907662,2.14980931,4651.6,4651.0,0.10720001]
[1755228907663,2.15002902,4651.1,4651.0,1e-08]
[1755228907969,0.5988,4651.2,4651.0,1e-08]
[1755228908171,0.10720001,4651.6,4651.0,1e-08]
[1755228908359,1e-08,4651.6,4651.0,1e-08]
[1755228908563,1e-08,4651.6,4651.5,2.25704413]
[1755228908792,1e-08,4651.6,4651.5,6.02344413]
[1755228909292,1e-08,4651.6,4651.5,6.49184413]
[1755228910867,1e-08,4651.6,4651.5,16.02344413]
[1755228911463,1e-08,4651.6,4651.5,12.25704413]
[1755228911665,1e-08,4651.6,4651.5,16.02344413]
[1755228911998,1e-08,4651.6,4651.5,6.02344413]
[1755228914281,1e-08,4651.6,4651.5,10.2714441]
[1755228915004,1e-08,4651.6,4651.5,9.8220441]
[1755228915920,1e-08,4651.6,4651.5,10.2714441]
[1755228917622,1e-08,4651.6,4651.5,6.02344413]
[1755228918497,1e-08,4651.6,4651.5,5.57404413]
[1755228919890,1e-08,4651.6,4651.5,6.02344413]
[1755228920721,1e-08,4651.6,4651.5,10.2714441]
[1755228921018,1e-08,4651.6,4651.5,10.2724441]
[1755228921206,0.48760001,4652.5,4652.0,2.14961306]
[1755228921390,0.4739,4652.4,4652.1,5.46654835]
[1755228921793,0.4739,4652.4,4652.3,0.1072]
[1755228922125,0.4739,4652.4,4652.3,3.4242]
[1755228922622,0.002,4652.6,4652.3,3.4242]
[1755228923225,0.9241,4652.5,4652.3,3.4242]
[1755228923420,0.4813,4652.4,4652.3,3.4242]
[1755228923804,0.9241,4652.4,4652.3,3.4242]
[1755228924923,0.4813,4652.4,4652.3,3.4242]
[1755228926200,0.9241,4652.4,4652.3,3.4242]
[1755228929329,0.4813,4652.4,4652.3,3.4242]
[1755228931736,0.002,4652.6,4652.3,3.4242]
[1755228931901,0.4813,4652.5,4652.3,3.4242]
[1755228932321,0.4813,4652.4,4652.3,3.4242]
[1755228933512,0.002,4652.6,4652.3,3.4242]
[1755228933714,0.4833,4652.6,4652.3,3.4242]
[1755228933902,0.4813,4652.5,4652.3,3.4242]
[1755228934107,0.4813,4652.4,4652.3,3.4242]
[1755228935033,0.002,4652.6,4652.3,3.4242]
[1755228935738,0.002,4652.6,4652.4,2.61352063]
[1755228935915,0.002,4652.6,4652.5,3.316]
[1755228936128,0.002,4652.6,4652.5,5.46538205]
[1755228936539,0.002,4652.6,4652.5,9.41868205]
[1755228936730,0.002,4652.6,4652.5,19.41868205]
[1755228937117,1e-08,4652.6,4652.5,19.41868205]
[1755228937321,0.002,4653.6,4653.5,2.14892016]
[1755228937521,0.002,4653.6,4652.5,10.0]
[1755228937842,0.002,4653.6,4653.5,2.14892016]
[1755228938047,0.002,4653.6,4653.5,5.46492016]
[1755228938243,0.002,4653.6,4653.5,5.92902016]
[1755228938432,0.002,4653.6,4653.5,3.316]
[1755228938645,0.002,4653.6,4653.5,5.46492016]
[1755228938844,0.002,4653.6,4653.5,17.65466606]
[1755228939044,0.4813,4655.8,4654.7,2.14833501]
[1755228939232,10.254553,4655.7,4654.8,3.324]
[1755228939434,0.57785006,4656.9,4654.5,2.14842856]
[1755228939435,2.62925085,4655.6,4654.9,3.325]
[1755228939740,0.9241,4655.5,4655.0,3.325]
[1755228939911,0.9241,4655.4,4655.0,3.325]
[1755228940116,0.9241,4655.3,4655.0,3.325]
[1755228940442,3.07223608,4655.2,4655.0,3.325]
[1755228940745,0.9241,4655.1,4654.8,3.324]
[1755228941116,0.01641705,4656.1,4654.8,3.324]
[1755228941117,0.9241,4655.0,4654.8,3.324]
[1755228941424,0.4813,4654.9,4654.8,3.324]
[1755228941621,0.4813,4655.3,4654.8,3.324]
[1755228941827,0.9241,4655.2,4654.8,3.324]
[1755228942029,0.9241,4655.1,4654.8,3.324]
[1755228942344,0.9241,4655.1,4653.8,10.0]
[1755228942345,2.14868603,4654.1,4653.8,10.0]
[1755228942649,0.9241,4654.0,4653.8,10.0]
[1755228942946,0.9241,4653.9,4653.7,3.327]
[1755228943139,2.14863914,4654.2,4653.7,3.327]
[1755228943319,10.735853,4654.1,4653.7,3.327]
[1755228943514,0.9241,4654.0,4653.7,3.327]
[1755228943832,2.14827868,4654.9,4653.7,3.327]
[1755228943833,0.9241,4653.9,4653.7,3.327]
[1755228944014,2.14868234,4654.1,4653.7,3.327]
[1755228944215,0.4813,4653.8,4652.9,5.161]
[1755228944420,0.4813,4653.8,4653.0,3.326]
[1755228944421,10.254553,4653.7,4653.0,3.326]
[1755228944639,0.9241,4653.6,4653.0,3.326]
[1755228944840,0.9241,4653.5,4653.0,3.326]
[1755228945044,0.01641705,4654.3,4653.0,3.326]
[1755228945045,0.9241,4653.4,4653.0,3.326]
[1755228945237,2.14854137,4654.4,4653.0,3.326]
[1755228945433,0.9241,4653.3,4653.0,3.326]
[1755228945746,11.81429596,4655.1,4653.0,3.326]
[1755228945947,0.4813,4653.7,4653.0,3.326]
[1755228946168,0.4813,4654.1,4653.1,0.4641]
[1755228946320,0.4813,4654.1,4653.1,2.6132024]
[1755228946520,0.5885,4654.1,4653.5,0.1072]
[1755228946836,2.1487327,4654.0,4653.6,3.325]
[1755228947036,0.9241,4653.9,4653.6,3.325]
[1755228947237,0.4813,4653.9,4653.6,3.325]
[1755228947647,2.14873718,4653.9,4653.6,3.325]
[1755228947849,0.9241,4653.8,4653.6,3.325]
[1755228948150,0.4813,4653.7,4653.6,3.325]
[1755228949050,2.14874047,4653.9,4653.5,0.1072]
[1755228949348,0.9241,4653.8,4653.5,0.1072]
[1755228949519,0.4813,4653.7,4653.5,0.1072]
[1755228949937,0.9241,4653.6,4653.3,3.326]
[1755228950141,0.4813,4653.6,4653.3,3.326]
[1755228950341,0.1072,4653.8,4653.4,0.48558966]
[1755228950541,0.4813,4654.1,4653.4,0.48558966]
[1755228950542,0.4813,4654.1,4653.5,0.1072]
[1755228950748,0.1072,4654.2,4653.5,0.1072]
[1755228950943,9.811753,4654.1,4653.5,0.1072]
[1755228951957,0.1072,4654.2,4653.6,2.14887399]
[1755228952258,0.1072,4654.2,4653.7,3.34448827]
[1755228952423,0.1072,4654.2,4653.7,3.77498827]
[1755228952621,0.1072,4654.2,4653.7,3.7535]
[1755228953355,0.1072,4654.2,4653.7,3.323]
[1755228953556,0.9166,4654.1,4653.7,3.323]
[1755228953758,2.14864313,4654.1,4653.7,3.323]
[1755228953945,10.728353,4654.0,4653.5,0.1072]
[1755228954145,0.1072,4654.2,4653.5,0.1072]
[1755228954146,10.728353,4653.9,4653.5,0.1072]
[1755228954329,2.14885519,4653.7,4653.2,3.321]
[1755228954526,0.9166,4653.6,4653.2,3.321]
[1755228955056,0.9166,4653.5,4653.2,3.321]
[1755228955357,0.4563,4653.4,4653.2,3.321]
[1755228956188,0.1072,4653.8,4653.2,3.321]
[1755228956359,0.4623,4655.1,4653.2,3.321]
[1755228956360,0.4563,4654.3,4653.5,2.14890677]
[1755228956736,0.4563,4654.3,4653.3,0.4305]
[1755228956948,0.4563,4654.3,4653.2,3.321]
[1755228957151,0.4603,4654.2,4653.2,3.321]
[1755228957359,0.4563,4654.3,4653.3,0.4305]
[1755228957560,0.4563,4654.3,4653.3,2.57947188]
[1755228958063,0.4563,4654.3,4653.4,2.14895012]
[1755228958434,0.4563,4654.3,4653.3,3.4305]
[1755228958648,0.4563,4654.3,4653.3,5.57946772]
[1755228959047,0.4563,4654.3,4653.4,2.14896205]
[1755228959243,0.4563,4654.3,4653.4,5.14896205]
[1755228959457,0.4563,4654.3,4653.3,5.5795116]
[1755228959646,0.4563,4654.3,4653.4,2.14896491]
[1755228959832,2.60485131,4654.3,4653.3,3.4305]
[1755228960037,3.06521465,4654.2,4653.3,3.0]
[1755228960254,0.9166,4654.2,4653.3,5.14900583]
[1755228960675,2.14850092,4654.5,4653.3,5.14900583]
[1755228960676,2.14850092,4654.5,4653.4,2.57946069]
[1755228960964,9.811753,4654.4,4653.5,2.1489145]
[1755228961176,9.811753,4654.4,4653.4,0.4305]
[1755228961177,8.56964813,4654.4,4653.4,0.4305]
[1755228961368,6.421137,4654.3,4653.4,0.4305]
[1755228961567,2.14851113,4654.4,4653.4,0.4305]
[1755228962060,2.14856446,4654.3,4653.4,0.4305]
[1755228962254,0.9166,4654.2,4653.2,3.321]
[1755228962452,0.002,4654.7,4651.7,0.4305]
[1755228962453,7.337737,4654.1,4651.7,0.4305]
[1755228962656,2.1490226,4653.3,4652.5,3.319]
[1755228962841,0.9166,4653.2,4652.5,3.319]
[1755228963437,0.4563,4653.2,4652.5,3.319]
[1755228963687,2.14897397,4653.4,4652.5,3.319]
[1755228964044,6.421137,4653.3,4652.5,3.319]
[1755228964235,2.14919575,4653.0,4652.5,3.319]
[1755228964656,0.9166,4652.9,4652.5,3.319]
[1755228964857,2.14902299,4653.3,4652.5,3.319]
[1755228965057,0.9166,4652.8,4652.5,3.319]
[1755228965575,2.14952177,4652.2,4651.5,0.001]
[1755228965886,2.14938658,4652.5,4651.8,3.318]
[1755228966042,2.14948531,4652.3,4651.8,3.318]
[1755228966359,7.337737,4652.2,4651.7,0.1072]
[1755228966561,3.06616686,4652.1,4651.5,0.1082]
[1755228966744,6.421137,4652.0,4651.5,0.1082]